bitfinex/quotes_BTCUSD_20240723
["timestamp","ask_amount","ask_price","bid_price","bid_amount"]
[1721703975969,1.889874,67760.0,67753.0,0.00913]
[1721703975970,0.4665,67754.0,67753.0,0.00913]
[1721703976200,1.85912053,67754.0,67753.0,0.00913]
[1721703976420,2.15430553,67754.0,67753.0,0.00913]
[1721703976618,2.30126818,67754.0,67753.0,0.00913]
[1721703976826,2.30067136,67754.0,67753.0,0.00913]
[1721703977283,2.30079705,67754.0,67753.0,0.00913]
[1721703977760,2.30079705,67754.0,67753.0,0.01113]
[1721703978383,2.30179705,67754.0,67753.0,0.01113]
[1721703978585,2.45093085,67754.0,67753.0,0.01113]
[1721703979619,2.45953946,67754.0,67753.0,0.01113]
[1721703980047,2.45939056,67754.0,67753.0,0.01113]
[1721703980543,2.26028661,67754.0,67753.0,0.01113]
[1721703981206,2.11332396,67754.0,67753.0,0.01113]
[1721703982003,2.16532396,67754.0,67753.0,0.01113]
[1721703983215,2.16517638,67754.0,67753.0,0.01113]
[1721703983675,2.16517628,67754.0,67753.0,0.01113]
[1721703984354,2.11517628,67754.0,67753.0,0.01113]
[1721703984791,2.11517628,67754.0,67753.0,0.07163]
[1721703984792,1.67367628,67754.0,67753.0,0.07163]
[1721703985006,1.48347628,67754.0,67753.0,0.07163]
[1721703985645,1.18829128,67754.0,67753.0,0.07163]
[1721703985853,1.18829128,67754.0,67753.0,0.14713]
[1721703985854,1.14275561,67754.0,67753.0,0.14713]
[1721703986527,1.25308448,67754.0,67753.0,0.14713]
[1721703986794,1.2310184,67754.0,67753.0,0.14713]
[1721703987019,1.2354435,67754.0,67753.0,0.14513]
[1721703987290,1.2354435,67754.0,67753.0,0.00913]
[1721703987291,1.28132686,67754.0,67753.0,0.00913]
[1721703987541,1.28032686,67754.0,67753.0,0.01213]
[1721703987734,1.28032686,67754.0,67753.0,0.00913]
[1721703987735,1.14275561,67754.0,67753.0,0.00913]
[1721703988007,1.18904504,67754.0,67753.0,0.01213]
[1721703988239,1.18804504,67754.0,67753.0,0.00913]
[1721703988506,1.18804504,67754.0,67753.0,0.07273]
[1721703988729,1.18904504,67754.0,67753.0,0.07573]
[1721703988940,1.18904504,67754.0,67753.0,0.07273]
[1721703988941,1.25307923,67754.0,67753.0,0.07273]
[1721703989211,1.25207923,67754.0,67753.0,0.07273]
[1721703989460,1.25207618,67754.0,67753.0,0.07273]
[1721703990147,1.14175561,67754.0,67753.0,0.07273]
[1721703990372,1.14175561,67754.0,67753.0,0.07573]
[1721703990623,1.14175561,67754.0,67753.0,0.15503]
[1721703991089,1.14175561,67754.0,67753.0,0.15903]
[1721703991322,1.14175561,67754.0,67753.0,0.15503]
[1721703991557,1.15718538,67754.0,67753.0,0.15903]
[1721703991817,1.20349103,67754.0,67753.0,0.15903]
[1721703992060,1.35045368,67754.0,67753.0,0.01013]
[1721703992282,1.35045368,67754.0,67753.0,0.01513]
[1721703992532,1.35045368,67754.0,67753.0,0.01413]
[1721703992533,1.30414803,67754.0,67753.0,0.01413]
[1721703992754,1.35072378,67754.0,67753.0,0.01513]
[1721703993460,1.35072378,67754.0,67753.0,0.01013]
[1721703994420,1.35072378,67754.0,67753.0,0.01313]
[1721703994890,1.35072378,67754.0,67753.0,0.01213]
[1721703995155,1.35172378,67754.0,67753.0,0.01213]
[1721703995628,1.30514803,67754.0,67753.0,0.01213]
[1721703995872,1.35164851,67754.0,67753.0,0.01213]
[1721703996110,1.30514803,67754.0,67753.0,0.01213]
[1721703996354,1.35164851,67754.0,67753.0,0.01213]
[1721703998008,1.35064851,67754.0,67753.0,0.01213]
[1721703998278,1.35064851,67754.0,67753.0,0.00913]
[1721703998510,1.35064851,67754.0,67753.0,0.01313]
[1721703998762,1.35049635,67754.0,67753.0,0.01313]
[1721703999272,1.35149635,67754.0,67753.0,0.01313]
[1721703999989,1.35149635,67754.0,67753.0,0.00913]
[1721704000227,1.2045337,67754.0,67753.0,0.15803]
[1721704000723,0.06277809,67754.0,67753.0,0.19703]
[1721704001008,0.06277809,67754.0,67753.0,0.218559]
[1721704001009,0.04734832,67754.0,67753.0,0.218559]
[1721704001273,0.04415152,67760.0,67759.0,0.1823]
[1721704001515,0.36138866,67762.0,67759.0,0.1823]
[1721704001516,0.147577,67761.0,67760.0,0.039]
[1721704001792,0.00084,67764.0,67763.0,0.039]
[1721704002027,0.00084,67764.0,67763.0,0.1844]
[1721704002261,0.04499574,67764.0,67763.0,0.18807184]
[1721704002511,0.04499574,67764.0,67763.0,0.35345202]
[1721704002512,0.00084,67764.0,67763.0,0.35345202]
[1721704002743,0.00084,67764.0,67763.0,0.20587902]
[1721704003443,0.00084,67764.0,67763.0,0.18707184]
[1721704003668,0.14841,67764.0,67763.0,0.18707184]
[1721704004090,0.14841,67764.0,67763.0,0.20107184]
[1721704004292,0.14941,67764.0,67763.0,0.20907184]
[1721704004917,0.14841,67764.0,67763.0,0.20107184]
[1721704005122,0.14841,67764.0,67763.0,0.21507184]
[1721704005123,0.14941,67764.0,67763.0,0.21507184]
[1721704005342,0.14941,67764.0,67763.0,0.2114]
[1721704005343,0.444551,67764.0,67763.0,0.2114]
[1721704005548,0.739692,67764.0,67763.0,0.2114]
[1721704009062,0.78383699,67764.0,67763.0,0.2114]
[1721704011164,0.78383735,67764.0,67763.0,0.2114]
[1721704011375,0.14941,67764.0,67763.0,0.2114]
[1721704011580,0.1935565,67764.0,67763.0,0.2114]
[1721704013706,0.1935565,67764.0,67763.0,0.215023]
[1721704014141,0.14941,67764.0,67763.0,0.215023]
[1721704014544,0.14941,67764.0,67763.0,0.2114]
[1721704014761,0.14941,67764.0,67763.0,0.215023]
[1721704015605,0.00184,67764.0,67763.0,0.215023]
[1721704018172,0.00184,67764.0,67763.0,0.952888]
[1721704021120,0.00184,67764.0,67763.0,0.657742]
[1721704021329,0.00184,67764.0,67763.0,0.215023]
[1721704021535,0.00184,67764.0,67763.0,0.362596]
[1721704023061,0.00184,67764.0,67763.0,0.657742]
[1721704023725,0.00184,67764.0,67763.0,1.248034]
[1721704023932,0.00184,67764.0,67763.0,0.952888]
[1721704028858,0.00184,67764.0,67763.0,0.657742]
[1721704033256,0.147559,67770.0,67767.0,0.0772]
[1721704033257,0.12981811,67770.0,67767.0,0.0772]
[1721704033505,0.12981811,67770.0,67768.0,0.0638]
[1721704033750,0.12981811,67770.0,67769.0,0.002794]
[1721704034427,0.12981811,67770.0,67769.0,0.00636993]
[1721704034673,0.13081811,67770.0,67769.0,0.00357593]
[1721704035161,0.12981811,67770.0,67769.0,0.00357593]
[1721704035401,0.13081811,67770.0,67769.0,0.04659012]
[1721704035648,0.001,67770.0,67769.0,0.37425012]
[1721704035899,0.001,67770.0,67769.0,0.66937012]
[1721704036658,0.001,67770.0,67769.0,0.37425012]
[1721704036915,0.001,67770.0,67769.0,0.65335593]
[1721704038165,0.30373547,67779.0,67769.0,0.65335593]
[1721704038166,0.04412363,67780.0,67779.0,0.480614]
[1721704038439,0.04412432,67793.0,67791.0,0.147511]
[1721704038685,0.19162832,67795.0,67790.0,0.038]
[1721704038919,0.04412432,67795.0,67794.0,0.038]
[1721704039392,0.21368549,67797.0,67794.0,0.038]
[1721704039393,0.147499,67797.0,67796.0,0.038]
[1721704039635,0.442497,67797.0,67796.0,0.05690731]
[1721704039893,0.442497,67797.0,67796.0,0.038]
[1721704040137,0.50868349,67797.0,67796.0,0.038]
[1721704040371,0.442497,67797.0,67796.0,0.038]
[1721704041089,0.442497,67797.0,67796.0,0.043]
[1721704041090,0.737495,67797.0,67796.0,0.043]
[1721704041352,0.737495,67797.0,67796.0,0.005]
[1721704041353,0.78159699,67797.0,67796.0,0.005]
[1721704041849,0.737495,67797.0,67796.0,0.005]
[1721704041850,0.80364799,67797.0,67796.0,0.005]
[1721704042352,0.737495,67797.0,67796.0,0.005]
[1721704042596,0.737505,67796.0,67795.0,0.038]
[1721704043327,1.07661651,67796.0,67795.0,0.038]
[1721704043568,1.09865999,67796.0,67795.0,0.038]
[1721704044263,1.09865999,67796.0,67795.0,0.043]
[1721704044338,0.147514,67790.0,67789.0,0.1753]
[1721704044340,0.442542,67790.0,67789.0,0.1753]
[1721704044578,0.442542,67790.0,67789.0,0.17881782]
[1721704044829,0.73757,67790.0,67789.0,0.14081782]
[1721704045226,0.73757,67790.0,67789.0,0.1373]
[1721704046831,0.73757,67790.0,67789.0,0.1503]
[1721704047288,0.73757,67790.0,67789.0,0.1643]
[1721704047525,0.73757,67790.0,67789.0,0.1513]
[1721704047736,0.73757,67790.0,67789.0,0.1553]
[1721704047945,0.73757,67790.0,67789.0,0.1683]
[1721704048147,0.73757,67790.0,67789.0,0.1373]
[1721704048361,0.73757,67790.0,67789.0,0.1413]
[1721704049536,0.73757,67790.0,67789.0,0.1503]
[1721704049816,0.73757,67790.0,67789.0,0.1373]
[1721704050227,0.73757,67790.0,67789.0,0.1583]
[1721704053858,1.032598,67790.0,67789.0,0.021]
[1721704054048,0.737592,67788.0,67787.0,0.038]
[1721704054957,0.147518,67788.0,67787.0,0.13618]
[1721704055148,0.147518,67788.0,67787.0,0.19848]
[1721704055360,0.147518,67788.0,67787.0,0.20200021]
[1721704056128,0.147518,67788.0,67787.0,0.19352021]
[1721704057363,0.33916445,67791.0,67787.0,0.19352021]
[1721704057364,0.19165245,67790.0,67787.0,0.19352021]
[1721704057581,0.147515,67790.0,67789.0,0.038]
[1721704057794,0.4866858,67790.0,67789.0,0.04152021]
[1721704057999,0.442543,67790.0,67789.0,0.038]
[1721704058379,0.50875831,67790.0,67789.0,0.038]
[1721704059113,1.032599,67790.0,67789.0,0.01652021]
[1721704059648,1.15540704,67790.0,67789.0,0.013]
[1721704059891,1.07594052,67790.0,67789.0,0.013]
[1721704060624,1.07594052,67790.0,67789.0,0.021]
[1721704060831,1.07594189,67790.0,67789.0,0.021]
[1721704061041,1.07594189,67790.0,67789.0,0.013]
[1721704061243,0.737657,67782.0,67781.0,0.0996]
[1721704062801,0.737657,67782.0,67781.0,0.1236]
[1721704063053,0.82600479,67782.0,67781.0,0.1236]
[1721704063680,0.737657,67782.0,67781.0,0.1236]
[1721704063896,0.82601197,67782.0,67781.0,0.1236]
[1721704064325,0.737657,67782.0,67781.0,0.1236]
[1721704067077,0.442594,67782.0,67781.0,0.1236]
[1721704069532,0.442594,67782.0,67781.0,0.144]
[1721704070381,0.53098639,67782.0,67781.0,0.144]
[1721704070652,0.08839996,67782.0,67781.0,0.227]
[1721704070897,0.08839996,67782.0,67781.0,0.23051491]
[1721704071150,0.23592896,67783.0,67781.0,0.23051491]
[1721704071378,0.23592896,67783.0,67782.0,0.038]
[1721704071602,0.23592896,67783.0,67782.0,0.07580539]
[1721704072057,0.23592896,67783.0,67782.0,0.0793203]
[1721704072298,0.147529,67783.0,67782.0,0.0793203]
[1721704072510,0.737647,67783.0,67782.0,0.04151491]
[1721704072735,0.442594,67782.0,67781.0,0.1826]
[1721704072942,0.737657,67782.0,67781.0,0.1916]
[1721704073181,0.737657,67782.0,67781.0,0.19511491]
[1721704073379,0.737657,67782.0,67781.0,0.1826]
[1721704074263,0.84818863,67782.0,67781.0,0.1826]
[1721704074450,0.84818863,67782.0,67781.0,0.1966]
[1721704074665,0.84818863,67782.0,67781.0,0.2066]
[1721704075072,0.84818863,67782.0,67781.0,0.1926]
[1721704075450,0.84818863,67782.0,67781.0,0.2066]
[1721704075655,0.84818863,67782.0,67781.0,0.1966]
[1721704076029,0.84818863,67782.0,67781.0,0.2066]
[1721704076257,0.737657,67782.0,67781.0,0.2066]
[1721704076451,0.84821845,67782.0,67781.0,0.1966]
[1721704076649,0.84821845,67782.0,67781.0,0.1826]
[1721704077061,0.84821845,67782.0,67781.0,0.1966]
[1721704077264,0.84823396,67782.0,67781.0,0.1966]
[1721704077484,0.84823396,67782.0,67781.0,0.2066]
[1721704078165,0.737657,67782.0,67781.0,0.2066]
[1721704078365,0.442594,67782.0,67781.0,0.2066]
[1721704078710,0.55318427,67782.0,67781.0,0.21011172]
[1721704079316,0.442594,67782.0,67781.0,0.21011172]
[1721704080681,0.737657,67782.0,67781.0,0.21011172]
[1721704081114,0.737657,67782.0,67781.0,0.2066]
[1721704088665,0.78079521,67782.0,67781.0,0.2066]
[1721704091269,0.79042949,67782.0,67781.0,0.2066]
[1721704091952,0.92326555,67782.0,67781.0,0.2066]
[1721704094630,0.79042949,67782.0,67781.0,0.2066]
[1721704094869,0.737657,67782.0,67781.0,0.2066]
[1721704095129,0.79046873,67782.0,67781.0,0.2066]
[1721704097694,0.79016943,67782.0,67781.0,0.2066]
[1721704099770,1.08523243,67782.0,67781.0,0.2066]
[1721704100624,1.03272,67782.0,67781.0,0.2066]
[1721704100845,1.08518172,67782.0,67781.0,0.2066]
[1721704102504,1.38024472,67782.0,67781.0,0.024]
[1721704102712,1.52979239,67782.0,67781.0,0.024]
[1721704102918,1.38024472,67782.0,67781.0,0.024]
[1721704103910,1.38078959,67782.0,67781.0,0.024]
[1721704104568,1.48078959,67782.0,67781.0,0.024]
[1721704105915,1.53078959,67782.0,67781.0,0.024]
[1721704106556,1.53162959,67782.0,67781.0,0.024]
[1721704106767,1.53162959,67782.0,67781.0,0.014]
[1721704106969,1.032874,67772.0,67771.0,0.0827]
[1721704107178,1.16243721,67772.0,67771.0,0.0827]
[1721704107389,1.108974,67772.0,67771.0,0.0827]
[1721704107612,1.16250051,67772.0,67771.0,0.0827]
[1721704107831,1.16250051,67772.0,67770.0,0.000924]
[1721704107832,1.032888,67771.0,67770.0,0.000924]
[1721704108037,1.08641451,67771.0,67770.0,0.000924]
[1721704109959,1.08623653,67771.0,67770.0,0.000924]
[1721704111079,1.08623653,67771.0,67770.0,0.009924]
[1721704111744,1.09526656,67771.0,67770.0,0.023924]
[1721704112015,1.09530889,67771.0,67770.0,0.023924]
[1721704112461,1.15017799,67771.0,67770.0,0.023924]
[1721704112694,1.09530889,67771.0,67770.0,0.023924]
[1721704112949,1.22801083,67771.0,67770.0,0.169724]
[1721704113196,0.295111,67771.0,67770.0,0.207724]
[1721704113443,0.147555,67771.0,67770.0,0.2286964]
[1721704113674,0.55323554,67771.0,67770.0,0.23226489]
[1721704113929,0.55323554,67771.0,67770.0,0.21129249]
[1721704114350,0.55323554,67771.0,67770.0,0.20229249]
[1721704114795,0.55323554,67771.0,67770.0,0.21129249]
[1721704115219,0.55323554,67771.0,67770.0,0.18829249]
[1721704115433,0.55323554,67771.0,67770.0,0.20229249]
[1721704115845,0.55323554,67771.0,67770.0,0.21629249]
[1721704116280,0.442666,67771.0,67770.0,0.21629249]
[1721704116497,0.147534,67781.0,67780.0,0.1824]
[1721704116933,0.442601,67781.0,67780.0,0.1824]
[1721704117138,0.442601,67781.0,67780.0,0.18594963]
[1721704117361,0.442601,67781.0,67780.0,0.1824]
[1721704117577,0.00084,67782.0,67781.0,0.327833]
[1721704117970,0.00084,67782.0,67781.0,0.967967]
[1721704117980,0.06632542,67789.0,67788.0,0.185518]
[1721704117981,0.04421469,67789.0,67788.0,0.185518]
[1721704118171,0.04421469,67789.0,67788.0,0.617655]
[1721704118407,0.06632542,67791.0,67790.0,0.322614]
[1721704118634,0.4734,67801.0,67791.0,0.185512]
[1721704118635,0.06632542,67792.0,67791.0,0.185512]
[1721704118851,0.06632542,67793.0,67792.0,0.33101]
[1721704119039,0.04420153,67793.0,67792.0,0.92105]
[1721704119278,0.0884339,67797.0,67796.0,0.0636]
[1721704119279,0.0884005,67797.0,67796.0,0.0636]
[1721704119522,0.0884005,67798.0,67796.0,0.1855]
[1721704119717,0.06627827,67798.0,67796.0,0.1855]
[1721704119906,0.06627758,67798.0,67797.0,0.00353492]
[1721704120320,0.06627758,67799.0,67797.0,0.14963492]
[1721704120537,0.06627758,67799.0,67798.0,0.1841]
[1721704120756,0.4734,67801.0,67800.0,0.038]
[1721704120965,0.4734,67801.0,67800.0,0.1779]
[1721704121190,0.19248974,67806.0,67805.0,0.038]
[1721704121411,0.19248974,67806.0,67805.0,0.1779]
[1721704121646,0.00084,67806.0,67805.0,0.1779]
[1721704121859,0.00084,67806.0,67805.0,0.19672192]
[1721704122289,0.148319,67806.0,67805.0,0.19672192]
[1721704122509,0.04496619,67806.0,67805.0,0.1779]
[1721704122723,0.19244519,67806.0,67805.0,0.1779]
[1721704122942,0.04496619,67806.0,67805.0,0.18131302]
[1721704123158,0.04496619,67806.0,67805.0,0.19944432]
[1721704123159,0.00084,67806.0,67805.0,0.19944432]
[1721704123385,0.00084,67806.0,67805.0,0.64188832]
[1721704123646,0.00084,67806.0,67805.0,0.34692532]
[1721704124125,0.00084,67806.0,67805.0,0.19944432]
[1721704124369,0.00084,67806.0,67805.0,0.18131302]
[1721704124639,0.443278,67806.0,67805.0,0.18131302]
[1721704124893,0.443278,67806.0,67805.0,0.19531302]
[1721704125147,0.443278,67806.0,67805.0,0.2009]
[1721704126630,0.443278,67806.0,67805.0,0.20429528]
[1721704127357,0.00084,67806.0,67805.0,0.20429528]
[1721704127609,0.00084,67806.0,67805.0,0.22472481]
[1721704128997,0.00084,67806.0,67805.0,0.66716881]
[1721704129439,0.00084,67806.0,67805.0,0.22472481]
[1721704129651,0.00084,67806.0,67805.0,0.20429528]
[1721704130077,0.148319,67806.0,67805.0,0.20429528]
[1721704130630,0.148319,67806.0,67805.0,0.2009]
[1721704130832,0.148319,67806.0,67805.0,0.20429528]
[1721704134265,0.443278,67806.0,67805.0,0.20429528]
[1721704136534,0.148319,67806.0,67805.0,0.20429528]
[1721704136740,0.00084,67806.0,67805.0,0.20429528]
[1721704136921,0.148319,67806.0,67805.0,0.20429528]
[1721704141943,0.81172642,67806.0,67805.0,0.20429528]
[1721704142168,0.738237,67806.0,67805.0,0.2009]
[1721704145227,0.00084,67806.0,67805.0,0.22099]
[1721704145651,0.00084,67806.0,67805.0,0.22434526]
[1721704148487,0.148319,67806.0,67805.0,0.20425526]
[1721704148724,0.81172642,67806.0,67805.0,0.20425526]
[1721704149152,0.81172642,67806.0,67805.0,0.2009]
[1721704151896,0.738237,67806.0,67805.0,0.2009]
[1721704152972,0.74716802,67806.0,67805.0,0.2009]
[1721704154051,0.738237,67806.0,67805.0,0.2009]
[1721704154309,0.738237,67806.0,67805.0,0.22099]
[1721704154553,0.00084,67806.0,67805.0,0.22099]
[1721704155002,0.00084,67806.0,67805.0,0.22434721]
[1721704155436,0.00084,67806.0,67805.0,0.20425721]
[1721704155643,0.148319,67806.0,67805.0,0.18125721]
[1721704155872,0.148319,67806.0,67805.0,0.19525721]
[1721704156056,0.148319,67806.0,67805.0,0.20925721]
[1721704156327,0.443278,67806.0,67805.0,0.20925721]
[1721704156535,0.443278,67806.0,67805.0,0.19525721]
[1721704156942,0.148319,67806.0,67805.0,0.20925721]
[1721704158820,0.14680282,67806.0,67805.0,0.20925721]
[1721704160993,0.44176182,67806.0,67805.0,0.20925721]
[1721704162616,0.48579242,67806.0,67805.0,0.20925721]
[1721704162840,0.44176182,67806.0,67805.0,0.20925721]
[1721704163065,0.4859926,67806.0,67805.0,0.20925721]
[1721704163658,0.52982302,67806.0,67805.0,0.20925721]
[1721704163970,0.23486402,67806.0,67805.0,0.20925721]
[1721704164428,0.14680282,67806.0,67805.0,0.20925721]
[1721704164894,0.11007651,67807.0,67806.0,0.1472]
[1721704164895,0.147478,67807.0,67806.0,0.1472]
[1721704165567,0.25818556,67807.0,67806.0,0.15053908]
[1721704165778,0.25818556,67807.0,67806.0,0.18853908]
[1721704165986,0.25818556,67807.0,67806.0,0.21555126]
[1721704166213,0.25818556,67807.0,67806.0,0.22955126]
[1721704166418,0.147478,67807.0,67806.0,0.22955126]
[1721704166629,0.147478,67807.0,67806.0,0.24355126]
[1721704166862,0.147478,67807.0,67806.0,0.21653908]
[1721704170777,0.148318,67807.0,67806.0,0.21653908]
[1721704174823,0.00084,67807.0,67806.0,0.21653908]
[1721704175311,0.00084,67807.0,67806.0,0.36401808]
[1721704175520,0.00084,67807.0,67806.0,0.95393608]
[1721704175665,0.00084,67807.0,67806.0,0.92593608]
[1721704175866,0.08942877,67807.0,67806.0,0.92593608]
[1721704176072,0.08942877,67807.0,67806.0,0.95393608]
[1721704176302,0.00084,67807.0,67806.0,0.95393608]
[1721704176517,0.00084,67807.0,67806.0,0.92593608]
[1721704176875,0.00084,67807.0,67806.0,0.93993608]
[1721704177411,0.08941852,67807.0,67806.0,0.93993608]
[1721704177595,0.08941835,67807.0,67806.0,0.93993608]
[1721704177807,0.08941835,67807.0,67806.0,0.92593608]
[1721704178025,0.08940919,67807.0,67806.0,0.93993608]
[1721704178231,0.08940919,67807.0,67806.0,0.92593608]
[1721704178546,0.00084,67807.0,67806.0,0.92593608]
[1721704178809,0.00084,67807.0,67806.0,0.93993608]
[1721704179066,0.08940919,67807.0,67806.0,0.93993608]
[1721704179306,0.00084,67807.0,67806.0,0.95393608]
[1721704179770,0.08940919,67807.0,67806.0,0.65897708]
[1721704180479,0.08940919,67807.0,67806.0,0.64497708]
[1721704180706,0.00084,67807.0,67806.0,0.65897708]
[1721704180958,0.08938967,67807.0,67806.0,0.65897708]
[1721704182385,0.00084,67807.0,67806.0,0.65897708]
[1721704183017,0.08938967,67807.0,67806.0,0.65897708]
[1721704183245,0.00084,67807.0,67806.0,0.65897708]
[1721704186281,0.00084,67807.0,67806.0,0.21653908]
[1721704187279,0.11150657,67807.0,67806.0,0.21653908]
[1721704187986,0.00084,67807.0,67806.0,0.21653908]
[1721704191341,0.1115132,67807.0,67806.0,0.21653908]
[1721704191770,0.00084,67807.0,67806.0,0.21653908]
[1721704192563,0.00084,67807.0,67806.0,0.65897708]
[1721704192788,0.08937552,67807.0,67806.0,0.65897708]
[1721704193249,0.00084,67807.0,67806.0,0.65897708]
[1721704193520,0.08937376,67807.0,67806.0,0.65897708]
[1721704195939,0.11150892,67807.0,67806.0,0.65897708]
[1721704196398,0.11151398,67807.0,67806.0,0.65897708]
[1721704196875,0.00084,67807.0,67806.0,0.65897708]
[1721704197299,0.11151398,67807.0,67806.0,0.65897708]
[1721704199247,0.11151398,67807.0,67806.0,0.36401808]
[1721704199479,0.00084,67807.0,67806.0,0.36401808]
[1721704199747,0.11153777,67807.0,67806.0,0.36401808]
[1721704200004,0.25901477,67807.0,67806.0,0.21653908]
[1721704200251,0.00084,67807.0,67806.0,0.21653908]
[1721704201200,0.148317,67807.0,67806.0,0.21653908]
[1721704201916,0.00084,67807.0,67806.0,0.40075611]
[1721704202153,0.00084,67807.0,67806.0,0.69571511]
[1721704202870,0.00084,67807.0,67806.0,0.69663911]
[1721704208067,0.00084,67807.0,67806.0,0.99159811]
[1721704209190,0.06726826,67807.0,67806.0,1.41255711]
[1721704209410,0.06726826,67807.0,67806.0,1.53510538]
[1721704209411,0.00084,67807.0,67806.0,1.53510538]
[1721704210072,0.00084,67807.0,67806.0,1.48510538]
[1721704210522,0.00084,67807.0,67806.0,1.47110538]
[1721704210955,0.00084,67807.0,67806.0,1.45710538]
[1721704211165,0.00084,67807.0,67806.0,1.76605767]
[1721704211397,0.00084,67807.0,67806.0,1.83005767]
[1721704211642,0.00084,67807.0,67806.0,1.76605767]
[1721704211885,0.00084,67807.0,67806.0,1.78005767]
[1721704213870,0.00084,67807.0,67806.0,1.75205767]
[1721704214094,0.00084,67807.0,67806.0,1.76605767]
[1721704214306,0.00084,67807.0,67806.0,1.76605202]
[1721704214520,0.00084,67807.0,67806.0,1.78005202]
[1721704214731,0.00084,67807.0,67806.0,1.78005261]
[1721704215618,0.00084,67807.0,67806.0,1.88005261]
[1721704215837,0.00084,67807.0,67806.0,1.83005261]
[1721704216053,0.00084,67807.0,67806.0,1.88005261]
[1721704216261,0.00084,67807.0,67806.0,1.83005261]
[1721704216934,0.00084,67807.0,67806.0,1.81605261]
[1721704217153,0.00084,67807.0,67806.0,1.83005261]
[1721704217401,0.00084,67807.0,67806.0,1.81604961]
[1721704217612,0.00084,67807.0,67806.0,1.83004961]
[1721704220003,0.00084,67807.0,67806.0,1.78004961]
[1721704220434,0.00084,67807.0,67806.0,1.78004924]
[1721704222298,0.00084,67807.0,67806.0,1.78005821]
[1721704222553,0.00084,67807.0,67806.0,0.51270208]
[1721704222766,0.00084,67807.0,67806.0,0.80766108]
[1721704222767,0.04506616,67807.0,67806.0,0.80766108]
[1721704223201,0.00084,67807.0,67806.0,0.80766108]
[1721704223419,0.00084,67807.0,67806.0,0.77966108]
[1721704223630,0.00084,67807.0,67806.0,0.79366108]
[1721704223875,0.00084,67807.0,67806.0,0.80766108]
[1721704224091,0.00084,67807.0,67806.0,0.79366108]
[1721704224521,0.06718238,67807.0,67806.0,0.80766108]
[1721704225175,0.00084,67807.0,67806.0,0.80766108]
[1721704225386,0.00084,67807.0,67806.0,0.36522308]
[1721704226849,0.443271,67807.0,67806.0,0.36522308]
[1721704227051,0.443271,67807.0,67806.0,0.361884]
[1721704227481,0.443271,67807.0,67806.0,0.36520208]
[1721704227932,1.037879,67807.0,67806.0,0.32720208]
[1721704228385,1.08765852,67807.0,67806.0,0.32720208]
[1721704228819,1.38261252,67807.0,67806.0,0.32720208]
[1721704229260,1.38261252,67807.0,67806.0,0.323884]
[1721704229261,1.58188726,67807.0,67806.0,0.323884]
[1721704229481,1.58188726,67807.0,67806.0,0.309884]
[1721704229482,1.58192133,67807.0,67806.0,0.309884]
[1721704229695,1.5906207,67807.0,67806.0,0.020924]
[1721704229906,1.5386207,67807.0,67806.0,0.014924]
[1721704230088,1.5886207,67807.0,67806.0,0.014924]
[1721704230339,1.5386207,67807.0,67806.0,0.003924]
[1721704230550,1.53937362,67807.0,67806.0,0.000924]
[1721704230763,1.6886207,67807.0,67806.0,0.005924]
[1721704231224,1.6386207,67807.0,67806.0,0.000924]
[1721704231520,1.48937362,67807.0,67806.0,0.000924]
[1721704232176,1.58937362,67807.0,67806.0,0.000924]
[1721704232391,1.7386207,67807.0,67806.0,0.000924]
[1721704232607,1.73756163,67807.0,67806.0,0.000924]
[1721704233095,1.58845704,67807.0,67806.0,0.000924]
[1721704233563,1.73748478,67807.0,67806.0,0.000924]
[1721704234636,1.58845704,67807.0,67806.0,0.000924]
[1721704234856,1.73748478,67807.0,67806.0,0.000924]
[1721704235074,1.88444743,67807.0,67806.0,0.000924]
[1721704235281,1.73541969,67807.0,67806.0,0.000924]
[1721704235707,1.73647092,67807.0,67806.0,0.000924]
[1721704238573,1.53950827,67807.0,67806.0,0.000924]
[1721704238789,1.61550827,67807.0,67806.0,0.000924]
[1721704239006,1.6986769,67807.0,67806.0,0.000924]
[1721704239279,1.56637237,67807.0,67806.0,0.000924]
[1721704239491,1.61637237,67807.0,67806.0,0.000924]
[1721704239923,1.74867104,67807.0,67806.0,0.000924]
[1721704240132,1.61637237,67807.0,67806.0,0.000924]
[1721704241429,1.44037237,67807.0,67806.0,0.000924]
[1721704241641,1.51637237,67807.0,67806.0,0.000924]
[1721704241856,1.14071837,67807.0,67806.0,0.000924]
[1721704242506,1.22887844,67807.0,67806.0,0.000924]
[1721704243370,1.32692041,67807.0,67806.0,0.000924]
[1721704243603,1.32692041,67807.0,67806.0,0.007924]
[1721704243780,1.32692041,67807.0,67806.0,0.000924]
[1721704244004,1.32692041,67807.0,67806.0,0.012924]
[1721704244476,1.32692041,67807.0,67806.0,0.000924]
[1721704244710,1.32692041,67807.0,67806.0,0.007924]
[1721704244953,1.32690855,67807.0,67806.0,0.010924]
[1721704245399,1.21871837,67807.0,67806.0,0.010924]
[1721704245595,1.22141837,67807.0,67806.0,0.010924]
[1721704246078,1.22141837,67807.0,67806.0,0.003924]
[1721704246227,1.22141837,67807.0,67806.0,0.008924]
[1721704246438,1.22141837,67807.0,67806.0,0.012924]
[1721704246665,1.22141837,67807.0,67806.0,0.004924]
[1721704246872,1.21671837,67807.0,67806.0,0.004924]
[1721704247130,1.21671837,67807.0,67806.0,0.000924]
[1721704247377,1.3048601,67807.0,67806.0,0.000924]
[1721704248031,1.30486267,67807.0,67806.0,0.000924]
[1721704249775,1.30486267,67807.0,67806.0,0.003924]
[1721704250428,1.21671837,67807.0,67806.0,0.017924]
[1721704252056,1.30485395,67807.0,67806.0,0.017924]
[1721704252482,1.35419833,67807.0,67806.0,0.017924]
[1721704254017,1.26606275,67807.0,67806.0,0.017924]
[1721704254231,1.26641143,67807.0,67806.0,0.017924]
[1721704255097,1.35455239,67807.0,67806.0,0.017924]
[1721704255739,1.27111143,67807.0,67806.0,0.017924]
[1721704257276,1.22141837,67807.0,67806.0,0.017924]
[1721704257486,1.27106683,67807.0,67806.0,0.017924]
[1721704260523,1.27088562,67807.0,67806.0,0.017924]
[1721704261378,1.26818562,67807.0,67806.0,0.017924]
[1721704261593,1.26618562,67807.0,67806.0,0.017924]